bitfinex-derivatives/quotes_BNBF0:USTF0_20250329
["timestamp","ask_amount","ask_price","bid_price","bid_amount"]
[1743242512790,5.89043389,606.34,605.77,0.27103605]
[1743242512991,5.89043389,606.33,605.77,0.27103605]
[1743242513186,4.4127038,606.32,605.77,0.27103605]
[1743242513390,4.4127038,606.31,605.77,0.27103605]
[1743242513593,6.38400662,606.3,605.77,0.27103605]
[1743242513791,5.88924915,606.29,605.77,0.27103605]
[1743242513990,5.88924915,606.28,605.77,0.27103605]
[1743242514189,3.74354428,606.27,605.77,0.27103605]
[1743242514390,3.74354428,606.26,605.77,0.27103605]
[1743242514589,2.26699893,606.25,605.77,0.27103605]
[1743242514790,2.26699893,606.24,605.77,0.27103605]
[1743242514989,2.81415633,606.25,605.77,0.27103605]
[1743242515188,2.26296305,606.24,605.77,0.27103605]
[1743242515393,2.81415633,606.25,605.77,0.27103605]
[1743242515394,0.92262365,606.23,605.77,0.27103605]
[1743242515586,0.92262365,606.22,605.77,0.27103605]
[1743242515791,0.92262365,606.21,605.77,0.27103605]
[1743242515990,0.92262365,606.2,605.77,0.27103605]
[1743242516287,1.63827636,606.46,605.77,0.27103605]
[1743242516288,1.08236782,606.19,605.77,0.27103605]
[1743242516793,1.08236782,606.19,605.78,0.27103605]
[1743242516994,1.08236782,606.19,605.76,0.28709555]
[1743242517194,1.08236782,606.19,605.77,0.27103605]
[1743242517387,7.45748802,607.97,605.77,0.27103605]
[1743242517388,1.08236782,606.18,605.77,0.27103605]
[1743242518590,7.45748802,607.92,605.77,0.27103605]
[1743242518591,1.63827636,606.51,605.77,0.27103605]
[1743242518793,6.37878829,606.5,605.77,0.27103605]
[1743242518988,6.37878829,606.49,605.77,0.27103605]
[1743242519193,6.37878829,606.48,605.77,0.27103605]
[1743242519392,6.37878829,606.47,605.77,0.27103605]
[1743242519595,6.37878829,606.46,605.72,0.27103605]
[1743242519790,6.37878829,606.45,605.76,0.28704345]
[1743242519988,3.46840143,606.47,605.76,0.28704345]
[1743242519989,6.37878829,606.44,605.83,1.23221343]
[1743242520191,6.37878829,606.43,605.84,0.27099261]
[1743242520389,6.37878829,606.42,605.84,0.27099261]
[1743242520595,5.88415747,606.41,605.84,0.27099261]
[1743242520895,3.73939175,606.4,605.84,0.27099261]
[1743242521090,3.73939175,606.39,605.84,0.27099261]
[1743242521290,3.73939175,606.38,605.84,0.27099261]
[1743242521489,3.73939175,606.37,605.84,0.27099261]
[1743242521794,6.54833398,606.36,605.84,0.27099261]
[1743242521994,2.26310454,606.35,605.84,0.27099261]
[1743242522197,2.26310454,606.34,605.84,0.27099261]
[1743242522397,0.92267951,606.33,605.84,0.27099261]
[1743242522594,0.92267951,606.32,605.82,0.27099261]
[1743242522796,0.92267951,606.31,605.83,0.27099261]
[1743242522993,0.92267951,606.3,605.82,0.27099261]
[1743242523197,1.08033231,606.31,605.83,0.27099261]
[1743242523396,1.08033231,606.31,605.82,0.27099261]
[1743242523596,1.08033231,606.3,605.81,1.23221343]
[1743242523794,1.08033231,606.3,605.82,0.27097114]
[1743242523995,1.63827636,606.61,605.82,0.27097114]
[1743242524197,6.38092297,606.6,605.82,0.27097114]
[1743242524401,6.38092297,606.59,605.82,0.27097114]
[1743242524598,6.38277099,606.58,605.82,0.27097114]
[1743242524796,6.38277099,606.57,605.82,0.27097114]
[1743242524997,6.38277099,606.56,605.83,0.27094965]
[1743242525197,6.38277099,606.55,606.0,1.23221343]
[1743242525398,3.47010737,606.58,606.0,1.23221343]
[1743242525399,6.38277099,606.54,606.01,0.27094965]
[1743242525599,6.38277099,606.53,606.01,0.27094965]
[1743242525794,6.38277099,606.52,606.01,0.27094965]
[1743242525997,6.38277099,606.51,606.01,0.27094965]
[1743242526199,6.38277099,606.5,606.01,0.27094965]
[1743242526400,5.88817398,606.49,606.01,0.27094965]
[1743242526601,5.88934152,606.48,606.01,0.27094965]
[1743242526797,3.47010737,606.5,606.01,0.27094965]
[1743242526798,3.74315793,606.47,606.01,0.27094965]
[1743242527001,0.92386508,606.46,606.01,0.27094965]
[1743242527303,0.92386508,606.45,606.01,0.27094965]
[1743242527502,0.92386508,606.44,606.01,0.27094965]
[1743242527702,2.40260546,606.43,606.01,0.27094965]
[1743242527903,2.40260546,606.42,606.05,1.23221343]
[1743242528103,0.92386508,606.41,606.06,0.27094965]
[1743242528304,0.92386508,606.4,606.07,0.27093226]
[1743242528500,0.92386508,606.39,606.08,0.27093226]
[1743242528701,0.92386508,606.38,606.06,0.27093226]
[1743242528905,0.92386508,606.37,606.07,0.27093183]
[1743242529106,1.08101719,606.42,606.06,0.27093183]
[1743242529300,1.08101719,606.38,606.07,0.27093183]
[1743242529500,1.08101719,606.38,606.06,0.27093183]
[1743242529705,1.08101719,606.37,606.07,0.27093183]
[1743242530005,1.08101719,606.37,606.24,1.23221343]
[1743242530206,1.63827636,606.61,606.25,0.27093183]
[1743242530407,6.39130846,606.6,606.25,0.27093183]
[1743242530604,3.49264156,606.59,606.24,1.23221343]
[1743242530806,6.39126332,606.58,606.25,0.270923]
[1743242530999,9.86530991,606.57,606.25,0.270923]
[1743242531204,6.39126332,606.56,606.25,0.270923]
[1743242531410,6.39126332,606.55,606.25,0.270923]
[1743242531609,6.39126332,606.54,606.25,0.270923]
[1743242531802,6.39126332,606.53,606.25,0.270923]
[1743242532001,6.39126332,606.52,606.25,0.270923]
[1743242532205,5.89671305,606.51,606.25,0.270923]
[1743242532403,3.47404659,606.54,606.27,1.23221343]
[1743242532404,5.89671305,606.5,606.27,1.23221343]
[1743242532605,5.89671305,606.49,606.27,1.23221343]
[1743242532802,3.74739517,606.48,606.28,0.270923]
[1743242533107,3.74739517,606.47,606.28,0.270923]
[1743242533302,3.74739517,606.46,606.28,0.270923]
[1743242533507,3.74739517,606.45,606.28,0.270923]
[1743242533703,2.26796656,606.44,606.28,0.270923]
[1743242533913,0.92464288,606.43,606.28,0.270923]
[1743242534203,0.92464288,606.42,606.29,0.270923]
[1743242534404,0.92464288,606.41,606.17,0.270923]
[1743242534712,1.08255558,606.42,606.18,0.270923]
[1743242534904,1.08255558,606.42,606.19,0.270923]
[1743242535109,1.08255558,606.42,606.17,0.270923]
[1743242535304,1.08255558,606.41,606.18,0.270923]
[1743242535609,1.08255558,606.41,606.19,0.270923]
[1743242535811,1.63827636,606.76,606.2,0.270923]
[1743242536005,6.39723188,606.75,606.21,0.270923]
[1743242536210,6.39723188,606.74,606.17,0.270923]
[1743242536405,6.39723188,606.73,606.18,0.270923]
[1743242536610,6.39723188,606.72,606.19,0.270923]
[1743242536812,6.39723188,606.71,606.13,1.23221343]
[1743242537012,5.90276183,606.7,606.14,0.27087145]
[1743242537215,6.39719057,606.69,606.15,0.27087145]
[1743242537513,6.39719057,606.68,606.16,0.27087145]
[1743242537709,6.39719057,606.67,606.14,0.27087145]
[1743242537913,6.39719057,606.66,606.15,0.27087145]
[1743242538116,5.90276183,606.65,606.15,0.27087145]
[1743242538310,3.75124641,606.64,606.14,0.27087145]
[1743242538514,3.75124641,606.63,606.13,1.23221343]
[1743242538708,3.75394053,606.62,606.14,0.2708462]
[1743242538915,2.27132921,606.61,606.15,0.2708462]
[1743242539215,2.27132921,606.6,606.31,1.23221343]
[1743242539416,0.92663207,606.59,606.32,0.2708462]
[1743242539611,0.92663207,606.58,606.32,0.2708462]
[1743242539817,0.92663207,606.57,606.32,0.2708462]
[1743242540015,1.08366292,606.59,606.32,0.2708462]
[1743242540316,0.92711511,606.58,606.32,0.2708462]
[1743242540615,1.08366292,606.58,606.32,0.2708462]
[1743242541013,0.92702346,606.57,606.32,0.2708462]
[1743242541218,1.08366292,606.57,606.32,0.2708462]
[1743242542118,1.08366292,606.56,606.33,0.2708462]
[1743242542320,0.92718634,606.55,606.34,0.2708462]
[1743242542518,1.08366292,606.56,606.35,0.2708462]
[1743242542715,1.08366292,606.55,606.25,0.2708462]
[1743242542913,0.92716578,606.54,606.25,0.2708462]
[1743242543118,0.92733883,606.53,606.25,0.2708462]
[1743242543321,1.08366292,606.52,606.25,0.2708462]
[1743242544220,1.08366292,606.51,606.21,0.2708462]
[1743242544414,1.08366292,606.51,606.22,0.2708462]
[1743242544615,1.08366292,606.51,606.21,0.2708462]
[1743242544820,2.27498348,606.5,606.22,0.2708462]
[1743242545021,2.27498348,606.5,606.21,0.2708462]
[1743242545022,2.27498348,606.49,606.21,0.2708462]
[1743242545324,2.27498348,606.48,606.22,0.2708462]
[1743242545620,1.08366292,606.5,606.2,1.23221343]
[1743242545621,2.27498348,606.47,606.23,0.27091248]
[1743242545821,2.27498348,606.46,606.21,0.27091248]
[1743242546123,2.27498348,606.45,606.21,0.27091248]
[1743242546320,2.82142496,606.47,606.21,0.27091248]
[1743242546321,0.92748829,606.44,606.21,0.27091248]
[1743242546517,0.92748829,606.43,606.22,0.27091248]
[1743242546722,0.92748829,606.42,606.23,0.27091248]
[1743242546921,1.08366292,606.43,606.24,0.27091248]
[1743242547121,0.92802259,606.42,606.24,0.27091248]
[1743242547324,0.92802259,606.41,606.25,0.27091248]
[1743242547522,1.08366292,606.41,606.15,0.27091248]
[1743242547714,1.08366292,606.41,606.14,1.23221343]
[1743242547715,1.08366292,606.41,606.16,0.27091248]
[1743242547922,1.08366292,606.4,606.19,0.28696534]
[1743242548121,1.08366292,606.4,606.2,0.27091248]
[1743242549025,1.08366292,606.39,606.2,0.27091248]
[1743242549624,1.08366292,606.38,606.2,0.27091248]
[1743242549820,1.08366292,606.38,606.21,0.27091248]
[1743242550024,1.08366292,606.38,606.22,0.27091248]
[1743242550225,1.08366292,606.38,606.23,0.27091248]
[1743242550421,0.98273616,606.65,606.19,0.28697599]
[1743242550422,1.08366292,606.37,606.2,0.27091248]
[1743242550625,1.08366292,606.37,606.21,0.27091248]
[1743242550826,1.08366292,606.37,606.2,0.27091248]
[1743242551025,1.08366292,606.36,606.2,0.27091248]
[1743242551526,1.63827636,606.62,606.2,0.27091248]
[1743242551725,6.41422415,606.61,606.2,0.27091248]
[1743242551919,0.98273616,606.59,606.2,0.27091248]
[1743242552227,6.41422415,606.58,606.12,1.23221343]
[1743242552425,1.63827636,606.54,606.12,1.23221343]
[1743242552625,6.41422415,606.53,606.12,1.23221343]
[1743242552826,3.50622943,606.52,606.12,1.23221343]
[1743242553027,6.41375474,606.51,606.12,1.23221343]
[1743242553327,6.41375474,606.5,606.12,1.23221343]
[1743242553626,6.41375474,606.49,606.12,1.23221343]
[1743242553829,6.41375474,606.48,605.85,1.23221343]
[1743242554126,9.89851679,606.47,605.96,0.28701386]
[1743242554319,6.41375474,606.46,605.97,0.27100805]
[1743242554520,6.41375474,606.45,605.86,0.27100805]
[1743242554730,6.41375474,606.44,605.87,0.27100805]
[1743242554926,6.41188975,606.43,605.86,0.27100805]
[1743242555227,6.41188975,606.42,605.87,0.27100805]
[1743242555427,6.41188975,606.41,605.86,0.27100805]
[1743242555627,6.41188975,606.4,605.87,0.55804558]
[1743242555824,6.41188975,606.39,605.88,0.27100805]
[1743242556028,6.41188975,606.38,605.88,0.27100805]
[1743242556229,6.41188975,606.37,605.88,0.27100805]
[1743242556430,6.41188975,606.36,605.88,0.27100805]
[1743242556730,6.41188975,606.35,605.96,1.23221343]
[1743242556930,6.41188975,606.34,605.97,0.27100805]
[1743242557127,6.41188975,606.33,605.97,0.27100805]
[1743242557329,6.41188975,606.32,605.97,0.27100805]
[1743242557529,6.41188975,606.31,605.97,0.27100805]
[1743242557728,5.91721486,606.3,605.97,0.27100805]
[1743242558030,3.76045518,606.29,605.97,0.27100805]
[1743242558333,3.76045518,606.28,605.97,0.27100805]
[1743242558630,2.27585187,606.27,605.93,0.27100805]
[1743242558832,0.92787707,606.26,605.94,0.27100805]
[1743242559130,2.27542632,606.25,605.95,0.27100805]
[1743242559328,2.27542632,606.24,605.93,0.27100805]
[1743242559527,0.92787707,606.23,605.94,0.27100805]
[1743242559724,0.92787707,606.22,605.93,0.27100805]
[1743242559930,1.086655,606.23,605.94,0.27100805]
[1743242560126,1.086655,606.23,605.95,0.27100805]
[1743242560433,1.086655,606.23,605.96,0.27100805]
[1743242560732,1.63827636,606.55,605.97,0.27100805]
[1743242560931,6.41082495,606.54,605.88,0.27100805]
[1743242561131,6.41082495,606.53,605.89,0.27100805]
[1743242561331,6.41082495,606.52,605.88,0.27100805]
[1743242561531,6.41082495,606.51,605.88,0.27100805]
[1743242561726,6.41082495,606.5,605.88,0.27100805]
[1743242561926,6.41082495,606.49,605.88,0.27100805]
[1743242562132,6.41082495,606.48,605.88,0.27100805]
[1743242562328,6.41082495,606.47,605.94,1.23221343]
[1743242562525,6.41082495,606.46,605.95,0.27100805]
[1743242562731,6.41082495,606.45,605.95,0.27100805]
[1743242562930,6.4109694,606.44,605.95,0.27100805]
[1743242563131,5.91631242,606.43,605.95,0.27100805]
[1743242563332,5.91631242,606.42,605.95,0.27100805]
[1743242563633,5.91631242,606.41,605.95,0.27100805]
[1743242563833,5.91631242,606.4,605.95,0.27100805]
[1743242564036,3.75984335,606.39,605.95,0.27100805]
[1743242564335,3.75984335,606.38,605.95,0.27100805]
[1743242564534,6.58400004,606.37,605.95,0.27100805]
[1743242564730,2.27550478,606.36,605.95,0.27100805]
[1743242564934,2.27550478,606.35,605.95,0.27100805]
[1743242565136,2.27550478,606.34,605.95,0.27100805]
[1743242565332,2.27550478,606.33,605.96,0.27100805]
[1743242565537,0.92771161,606.32,605.97,0.27100805]
[1743242565731,0.92771161,606.31,605.94,0.27100805]
[1743242565932,0.92771161,606.3,605.95,0.27100805]
[1743242566132,2.27560483,606.29,605.94,0.27100805]
[1743242566331,0.92776936,606.28,605.94,0.27100805]
[1743242566534,0.92776936,606.27,605.94,0.27100805]
[1743242566737,0.92776936,606.26,605.94,0.27100805]
[1743242566937,1.08621411,606.27,605.94,0.27100805]
[1743242567139,0.9277724,606.26,605.94,0.27100805]
[1743242567438,1.08621411,606.26,605.94,0.27100805]
[1743242568039,1.08621411,606.26,605.96,1.23221343]
[1743242568240,1.08621411,606.25,605.97,0.27098322]
[1743242569243,1.08621411,606.24,605.97,0.27098322]
[1743242569836,0.98238326,606.52,605.97,0.27098322]
[1743242569837,1.08621411,606.23,605.97,0.27098322]
[1743242570043,1.08621411,606.23,605.98,0.27098322]
[1743242570236,1.08621411,606.23,605.99,0.27098322]
[1743242570439,1.08621411,606.22,605.92,0.27098322]
[1743242570640,1.08621411,606.22,605.93,0.27098322]
[1743242570841,1.08621411,606.22,605.92,0.27098322]
[1743242571043,1.63827636,606.48,605.93,0.27098322]
[1743242571339,6.412792,606.47,605.91,1.51925333]
[1743242571546,6.412792,606.46,605.92,0.27098088]
[1743242571843,6.412792,606.45,605.92,0.27098088]
[1743242572144,6.412792,606.44,605.92,0.27098088]
[1743242572344,6.412792,606.43,605.92,0.27098088]
[1743242572545,6.412792,606.42,605.92,0.27098088]
[1743242572745,6.412792,606.41,605.92,0.27098088]
[1743242572944,6.412792,606.4,605.92,0.27098088]
[1743242573145,6.412792,606.39,605.92,0.27098088]
[1743242573342,6.412792,606.38,605.92,0.27098088]
[1743242573546,5.91814244,606.37,605.92,0.27098088]
[1743242573742,5.91814244,606.36,605.92,0.27098088]
[1743242573944,5.91814244,606.35,605.92,0.27098088]
[1743242574147,5.91814244,606.34,605.92,0.27098088]
[1743242574347,3.76104173,606.33,605.92,0.27098088]
[1743242574551,0.92802069,606.32,605.92,0.27098088]
[1743242574745,3.48463786,606.35,605.92,0.27098088]
[1743242574947,0.92841504,606.34,605.92,0.27098088]
[1743242575247,1.08657895,606.32,605.94,1.23221343]
[1743242575447,1.08657895,606.32,605.95,0.27098088]
[1743242575642,1.08657895,606.31,605.95,0.27098088]
[1743242576247,1.63827636,606.55,605.95,0.27098088]
[1743242576248,1.08657895,606.3,605.95,0.27098088]
[1743242576949,1.08657895,606.29,605.95,0.27098088]
[1743242577749,1.08657895,606.28,605.95,0.27098088]
[1743242578044,1.08657895,606.28,606.14,1.23221343]
[1743242578249,1.63827636,606.56,606.15,0.27098088]
[1743242578451,6.41601489,606.55,606.15,0.27098088]
[1743242578749,6.41601489,606.54,606.15,0.27098088]
[1743242578952,6.41601489,606.53,606.15,0.27098088]
[1743242579151,6.41601489,606.52,606.15,0.27098088]
[1743242579449,6.41601489,606.51,606.15,0.27098088]
[1743242579650,6.41601489,606.5,606.15,0.27098088]
[1743242579843,6.41601489,606.49,606.15,0.27098088]
[1743242580047,6.41601489,606.48,606.15,0.27098088]
[1743242580248,5.92143285,606.47,606.15,0.27098088]
[1743242580448,6.41601432,606.46,606.15,0.27098088]
[1743242580646,6.41601432,606.45,606.15,0.27098088]
[1743242580849,6.41601432,606.44,606.15,0.27098088]
[1743242581153,8.05429068,606.43,606.15,0.27098088]
[1743242581349,6.41601432,606.42,606.15,0.27098088]
[1743242581551,6.41601432,606.41,606.27,1.23221343]
[1743242581751,6.41601432,606.4,606.27,1.23221343]
[1743242581952,5.92143285,606.39,606.27,1.23221343]
[1743242582154,5.92143285,606.38,606.27,1.23221343]
[1743242582348,5.92143285,606.37,606.27,1.23221343]
[1743242582548,6.414441,606.36,606.27,1.23221343]
[1743242582752,6.414441,606.35,606.27,1.23221343]
[1743242583054,6.414441,606.34,606.27,1.23221343]
[1743242583248,6.414441,606.33,606.27,1.23221343]
[1743242583453,6.414441,606.32,606.27,1.23221343]
[1743242583649,6.414441,606.31,606.27,1.23221343]
[1743242583852,5.91970455,606.3,606.27,1.23221343]
[1743242584149,5.91970455,606.29,605.97,1.23221343]
[1743242584350,5.91970455,606.28,605.98,0.27105225]
[1743242584653,5.91873873,606.27,605.98,0.27105225]
[1743242584848,5.91873873,606.26,605.98,0.27105225]
[1743242585053,3.76107873,606.25,605.98,0.27105225]
[1743242585253,3.48594929,606.27,605.98,0.27105225]
[1743242585254,3.76107873,606.24,605.98,0.27105225]
[1743242585553,3.76107873,606.23,605.98,0.27105225]
[1743242585754,3.76107873,606.22,605.98,0.27105225]
[1743242585947,3.76107873,606.21,605.98,0.27105225]
[1743242586151,2.27643797,606.2,605.98,0.27105225]
[1743242586350,2.82650656,606.24,605.98,0.27105225]
[1743242586351,2.27643797,606.19,605.98,0.27105225]
[1743242586655,5.91602474,606.18,605.85,1.23221343]
[1743242586857,5.91602474,606.17,605.86,0.27112729]
[1743242587055,5.91602474,606.16,605.86,0.27112729]
[1743242587257,5.91602474,606.15,605.86,0.27112729]
[1743242587452,5.91602474,606.14,605.86,0.27112729]
[1743242587657,5.91602474,606.13,605.86,0.27112729]
[1743242587854,3.76033647,606.12,605.85,1.23221343]
[1743242588054,3.76033647,606.11,605.85,1.23221343]
[1743242588251,2.27643797,606.1,605.86,0.27113294]
[1743242588451,0.92790047,606.09,605.86,0.27113294]
[1743242588658,2.82650656,606.12,605.86,0.27113294]
[1743242588859,1.08711791,606.09,605.86,0.27113294]
[1743242589159,1.08711791,606.09,605.87,0.27113294]
[1743242589360,1.08711791,606.09,605.88,0.27113294]
[1743242589558,1.63827636,606.36,605.79,0.27113294]
[1743242589759,6.40400931,606.35,605.8,0.27113294]
[1743242589954,6.40400931,606.35,605.78,0.28710384]
[1743242589955,6.40400931,606.34,605.79,0.27113294]
[1743242590259,5.90923845,606.33,605.8,0.27113294]
[1743242590453,5.90923845,606.32,605.81,0.27113294]
[1743242590658,5.90923845,606.31,605.87,1.23221343]
[1743242590853,5.90923845,606.3,605.87,1.23221343]
[1743242591060,5.90923845,606.29,605.87,1.23221343]
[1743242591259,5.90923845,606.28,605.87,1.23221343]
[1743242591460,3.7553972,606.27,605.87,1.23221343]
[1743242591659,3.7553972,606.26,605.87,1.23221343]
[1743242591861,3.7553972,606.25,605.87,1.23221343]
[1743242592160,2.82081462,606.27,605.87,1.23221343]
[1743242592161,5.90807053,606.24,605.87,1.23221343]
[1743242592361,5.90807053,606.23,605.87,1.23221343]
[1743242592553,5.90807053,606.22,605.87,1.23221343]
[1743242592759,3.75498132,606.21,605.87,1.23221343]
[1743242592957,3.75498132,606.2,605.87,1.23221343]
[1743242593162,2.82081462,606.21,605.82,0.28707542]
[1743242593163,3.75498132,606.19,605.82,0.28707542]
[1743242593359,2.27278402,606.18,605.82,0.28707542]
[1743242593557,2.27278402,606.17,605.82,0.28707542]
[1743242593763,2.27278402,606.16,605.82,0.28707542]
[1743242593962,2.27278402,606.15,605.82,0.28707542]
[1743242594265,2.27278402,606.14,605.82,0.28707542]
[1743242594562,2.27278402,606.13,605.74,1.23221343]
[1743242594764,2.27278402,606.12,605.75,0.27108748]
[1743242594959,2.27278402,606.11,605.8,0.28713937]
[1743242595159,0.92663324,606.1,605.8,0.28713937]
[1743242595364,2.82081462,606.13,605.8,0.28713937]
[1743242595763,1.0849287,606.12,605.8,0.28713937]
[1743242596664,0.98244484,606.53,605.8,0.28713937]
[1743242596665,1.0849287,606.11,605.8,0.28713937]
[1743242596865,1.0849287,606.11,605.81,0.27108074]
[1743242597468,1.6380442,606.61,605.81,0.27108074]
[1743242597469,0.49479583,606.45,605.81,0.27108074]
[1743242597670,6.40134283,606.44,605.81,0.27108074]
[1743242597862,6.40134283,606.43,605.81,0.27108074]
[1743242598061,9.88063657,606.42,605.81,0.27108074]
[1743242598264,6.40134283,606.41,605.81,0.27108074]
[1743242598478,6.40211442,606.4,605.81,0.27108074]
[1743242598773,6.40211442,606.39,605.81,0.27108074]
[1743242598973,3.49885253,606.38,605.81,0.27108074]
[1743242599168,3.49885253,606.37,605.81,0.27108074]
[1743242599373,4.98098732,606.36,605.81,0.27108074]
[1743242599568,5.90732156,606.35,605.81,0.27108074]
[1743242599774,2.27204675,606.34,605.8,0.28713937]
[1743242599973,2.27204675,606.33,605.81,0.27103232]
[1743242600174,2.27204675,606.32,605.81,0.27103232]
[1743242600374,2.27204675,606.31,605.81,0.27103232]
[1743242600677,2.27204675,606.3,605.81,0.27103232]
[1743242600874,2.27204675,606.29,605.8,0.28709673]
[1743242601070,0.92633424,606.28,605.81,0.27103232]
[1743242601274,0.92633424,606.27,605.81,0.27103232]
[1743242601470,0.92633424,606.26,605.81,0.27103232]
[1743242601676,3.75591022,606.25,605.81,0.27103232]
[1743242601876,5.90985668,606.24,605.81,0.27103232]
[1743242602076,3.75591022,606.23,605.81,0.27103232]
[1743242602377,1.34641619,606.22,605.81,0.27103232]
[1743242602576,5.8776221,611.56,605.82,0.27107416]
[1743242602577,3.75685742,606.21,605.82,0.27107416]
[1743242602778,3.75685742,606.2,605.81,0.27107416]
[1743242603075,2.27350897,606.19,605.82,0.27107416]
[1743242603269,2.27330947,606.18,605.81,0.27107416]
[1743242603474,2.27330947,606.17,605.82,0.27107416]
[1743242603675,5.91081682,606.16,605.81,0.27107416]
[1743242603875,3.75661185,606.15,605.82,0.27107416]
[1743242604079,3.75661185,606.14,605.81,0.27107416]
[1743242604271,3.75661185,606.14,605.8,0.28713937]
[1743242604272,3.75661185,606.13,605.8,0.28713937]
[1743242604475,3.75661185,606.12,605.81,0.27107612]
[1743242604680,2.27327138,606.11,605.81,0.27107612]
[1743242604878,2.27327138,606.11,605.83,1.23221343]
[1743242604879,2.27327138,606.1,605.83,1.23221343]
[1743242605073,3.74769334,606.09,605.83,1.23221343]
[1743242605277,0.92689328,606.08,605.84,0.27107612]
[1743242605478,0.92689328,606.07,605.84,0.27107612]
[1743242605677,0.92689328,606.06,605.84,0.27107612]
[1743242605873,1.08445424,606.08,605.83,1.23221343]
[1743242606078,0.92735376,606.07,605.84,0.27107608]
[1743242606280,0.92735376,606.06,605.84,0.27107608]
[1743242606472,1.08445424,606.07,605.84,0.27107608]
[1743242606675,0.92743525,606.06,605.84,0.27107608]
[1743242606875,1.08445424,606.06,605.84,0.27107608]
[1743242607482,1.08445424,606.05,605.83,1.23221343]
[1743242607779,1.08445424,606.05,605.84,0.271076]
[1743242608279,1.08445424,606.04,605.84,0.271076]
[1743242608987,1.08445424,606.03,605.84,0.271076]
[1743242609483,1.08445424,606.02,605.84,0.271076]
[1743242610281,1.08445424,606.02,605.82,0.271076]
[1743242610480,0.98219652,606.28,605.83,0.271076]
[1743242610481,1.63827636,606.26,605.83,0.271076]
[1743242610677,5.91586984,606.25,605.84,0.271076]
[1743242610880,5.91586984,606.24,605.85,0.271076]
[1743242611082,3.75989134,606.23,605.84,1.23221343]
[1743242611279,3.75989134,606.22,605.85,0.271076]
[1743242611483,3.75989134,606.21,605.85,0.271076]
[1743242611681,3.75989134,606.2,605.85,0.271076]
[1743242611881,2.27533455,606.19,605.85,0.271076]
[1743242612084,5.91541685,606.18,605.84,1.23221343]
[1743242612385,6.40933824,606.17,605.86,1.23221343]
[1743242612587,6.40803079,606.16,605.86,1.23221343]
[1743242612784,6.40803079,606.15,605.86,1.23221343]
[1743242612983,6.40803079,606.14,605.86,1.23221343]
[1743242613180,6.40803079,606.13,605.86,1.23221343]
[1743242613382,6.40803079,606.12,605.86,1.23221343]
[1743242613580,1.63827636,606.27,605.86,1.23221343]
[1743242613581,6.40803079,606.11,605.86,1.23221343]
[1743242613785,5.91309325,606.1,605.86,1.23221343]
[1743242613984,5.91309325,606.09,605.59,0.28717492]
[1743242614286,5.91309325,606.08,605.6,0.27117447]
[1743242614487,3.75813523,606.07,605.6,0.27117447]
[1743242614686,0.92741787,606.06,605.6,0.27117447]
[1743242614988,0.92704456,606.05,605.6,0.27117447]
[1743242615187,2.82456224,606.06,605.6,0.27117447]
[1743242615688,1.08637009,606.05,605.6,0.27117447]
[1743242615889,1.08637009,606.05,605.75,1.23221343]
[1743242616087,1.63827636,606.33,605.76,0.27117447]
[1743242616290,6.40518041,606.32,605.77,0.27111408]
[1743242616492,6.40518041,606.31,605.76,0.27111408]
[1743242616786,6.40518041,606.3,605.77,0.27111408]
[1743242616992,5.91031267,606.29,605.76,0.27111408]
[1743242617192,5.91031267,606.28,605.75,1.23221343]
[1743242617492,5.91031267,606.27,605.75,1.23221343]
[1743242617692,6.4051922,606.26,605.75,1.23221343]
[1743242617891,6.4051922,606.25,605.75,1.23221343]
[1743242618086,6.4051922,606.24,605.75,1.23221343]
[1743242618290,5.91031267,606.23,605.75,1.23221343]
[1743242618585,5.90886948,606.22,605.55,1.23221343]
[1743242618792,5.90886948,606.21,605.55,1.23221343]
[1743242618991,5.90886948,606.2,605.65,0.28712516]
[1743242619291,1.63827636,606.43,605.55,1.23221343]
[1743242619292,5.90886948,606.19,605.55,1.23221343]
[1743242619490,5.90886948,606.18,605.55,1.23221343]
[1743242619690,5.90886948,606.17,605.55,1.23221343]
[1743242619891,5.90886948,606.16,605.55,1.23221343]
[1743242620193,3.75545129,606.15,605.56,0.28715477]
[1743242620393,3.75545129,606.14,605.56,0.28715477]
[1743242620691,2.27264211,606.13,605.56,0.28715477]
[1743242620886,2.27264211,606.12,605.56,0.28715477]
[1743242621091,2.27264211,606.11,605.56,0.28715477]
[1743242621291,2.27264211,606.1,605.56,0.28715477]
[1743242621491,2.27264211,606.09,605.55,1.23221343]
[1743242621691,2.27264211,606.08,605.55,1.23221343]
[1743242621890,3.35801304,606.07,605.56,0.28716425]
[1743242622091,2.27264211,606.06,605.56,0.28716425]
[1743242622287,2.27264211,606.05,605.56,0.28716425]
[1743242622488,0.92675574,606.04,605.56,0.28716425]
[1743242622688,0.92675574,606.03,605.56,0.28716425]
[1743242622890,0.92675574,606.02,605.56,0.28716425]
[1743242623090,1.08537093,606.02,605.56,0.28716425]
[1743242623693,0.981281,606.53,605.56,0.28716425]
[1743242623694,1.08537093,606.01,605.56,0.28716425]
[1743242624395,0.92623263,606.0,605.57,0.27112195]
[1743242624591,1.08537093,606.0,605.57,0.27112195]
[1743242624895,1.08537093,606.0,605.58,0.27112195]
[1743242625095,1.08537093,606.0,605.57,0.27112195]
[1743242625296,2.01159633,605.99,605.58,0.27112195]